[Event "Live Chess"]
[Site "Chess.com"]
[Date "2023.05.20"]
[Round "-"]
[White "Ferrarifan27"]
[Black "BostonStrangler"]
[Result "1-0"]
[WhiteElo "2089"]
[BlackElo "2061"]
[TimeControl "300"]
[EndTime "11:14:39 PDT"]
[Termination "Ferrarifan27 won on time"]

1. e4 {[%clk 0:04:58.4]} 1... c5 {[%clk 0:04:58.8]} 2. Nf3 {[%clk 0:04:57]} 2...
g6 {[%clk 0:04:58.4]} 3. d4 {[%clk 0:04:55.3]} 3... cxd4 {[%clk 0:04:58.3]} 4.
Nxd4 {[%clk 0:04:54.6]} 4... Nc6 {[%clk 0:04:56.7]} 5. c4 {[%clk 0:04:49.6]}
5... Nf6 {[%clk 0:04:54.7]} 6. Nc3 {[%clk 0:04:43.8]} 6... Nxd4 {[%clk
0:04:53.5]} 7. Qxd4 {[%clk 0:04:42.3]} 7... d6 {[%clk 0:04:52.5]} 8. Be3 {[%clk
0:04:39.8]} 8... Bg7 {[%clk 0:04:51.6]} 9. Qd2 {[%clk 0:04:35.2]} 9... O-O
{[%clk 0:04:50.2]} 10. f3 {[%clk 0:04:34.3]} 10... a5 {[%clk 0:04:48.5]} 11. Bd3
{[%clk 0:04:32.6]} 11... a4 {[%clk 0:04:47.6]} 12. O-O {[%clk 0:04:30.9]} 12...
Qa5 {[%clk 0:04:45.9]} 13. Nd5 {[%clk 0:04:24.3]} 13... Nxd5 {[%clk 0:04:36.7]}
14. cxd5 {[%clk 0:04:23.6]} 14... Qxd2 {[%clk 0:04:35]} 15. Bxd2 {[%clk
0:04:23.3]} 15... Bxb2 {[%clk 0:04:33.9]} 16. Rab1 {[%clk 0:04:22.5]} 16... a3
{[%clk 0:04:22.1]} 17. Bc1 {[%clk 0:04:18.9]} 17... Bd4+ {[%clk 0:04:18.8]} 18.
Kh1 {[%clk 0:04:17.1]} 18... b6 {[%clk 0:04:16]} 19. Rb3 {[%clk 0:04:10.9]}
19... Bc5 {[%clk 0:04:14.9]} 20. Bd2 {[%clk 0:04:05.1]} 20... Ba6 {[%clk
0:04:09.8]} 21. Bxa6 {[%clk 0:04:00.1]} 21... Rxa6 {[%clk 0:04:09.7]} 22. Rfb1
{[%clk 0:03:59]} 22... Rc8 {[%clk 0:03:59.6]} 23. Rc1 {[%clk 0:03:54.3]} 23...
Rca8 {[%clk 0:03:48.7]} 24. Bh6 {[%clk 0:03:50.3]} 24... f6 {[%clk 0:03:46.4]}
25. h4 {[%clk 0:03:48]} 25... Kf7 {[%clk 0:03:45.2]} 26. g4 {[%clk 0:03:44.2]}
26... Ra4 {[%clk 0:03:20.6]} 27. Bd2 {[%clk 0:03:38.2]} 27... Rd4 {[%clk
0:03:17.4]} 28. Be3 {[%clk 0:03:32.1]} 28... Rda4 {[%clk 0:03:09.4]} 29. Bd2
{[%clk 0:03:30.9]} 29... h5 {[%clk 0:03:04.1]} 30. gxh5 {[%clk 0:03:27]} 30...
gxh5 {[%clk 0:03:02.9]} 31. Kh2 {[%clk 0:03:13.3]} 31... Rb8 {[%clk 0:03:01.3]}
32. Rcc3 {[%clk 0:03:08.6]} 32... Rd8 {[%clk 0:02:58.6]} 33. Bc1 {[%clk
0:03:05.7]} 33... Rda8 {[%clk 0:02:52.8]} 34. Rc2 {[%clk 0:03:01.1]} 34... Rd4
{[%clk 0:02:39.2]} 35. Rcc3 {[%clk 0:02:53.9]} 35... Rd1 {[%clk 0:02:23.5]} 36.
Bxa3 {[%clk 0:02:52.1]} 36... Bxa3 {[%clk 0:02:21]} 37. Rxa3 {[%clk 0:02:50.9]}
37... Rd2+ {[%clk 0:02:20.1]} 38. Kh3 {[%clk 0:02:49.5]} 38... Rxa2 {[%clk
0:02:17.9]} 39. Rab3 {[%clk 0:02:45.1]} 39... R2a6 {[%clk 0:02:04.5]} 40. Rc6
{[%clk 0:02:42.5]} 40... Rg8 {[%clk 0:02:00.3]} 41. Rcxb6 {[%clk 0:02:39.7]}
41... Ra1 {[%clk 0:01:58.6]} 42. Rb1 {[%clk 0:02:35.6]} 42... Rxb1 {[%clk
0:01:52.2]} 43. Rxb1 {[%clk 0:02:35]} 43... f5 {[%clk 0:01:51.7]} 44. exf5
{[%clk 0:02:29.3]} 44... Kf6 {[%clk 0:01:48.5]} 45. Re1 {[%clk 0:02:26.8]} 45...
Rg7 {[%clk 0:01:46.8]} 46. Re6+ {[%clk 0:02:24.5]} 46... Kxf5 {[%clk 0:01:45.9]}
47. Rh6 {[%clk 0:02:23.6]} 47... Kf4 {[%clk 0:01:40.7]} 48. Rxh5 {[%clk
0:02:22.7]} 48... Kxf3 {[%clk 0:01:39.3]} 49. Rg5 {[%clk 0:02:18.8]} 49... Rf7
{[%clk 0:01:14.8]} 50. h5 {[%clk 0:02:15.3]} 50... Kf4 {[%clk 0:01:11]} 51. Kh4
{[%clk 0:02:13.3]} 51... Rh7 {[%clk 0:01:00.9]} 52. Rg1 {[%clk 0:02:04.6]} 52...
Ke5 {[%clk 0:00:58.4]} 53. Rd1 {[%clk 0:01:52.4]} 53... Ke4 {[%clk 0:00:54.2]}
54. Kg5 {[%clk 0:01:48.4]} 54... Rg7+ {[%clk 0:00:47.6]} 55. Kh6 {[%clk
0:01:47.3]} 55... Rg2 {[%clk 0:00:43]} 56. Kh7 {[%clk 0:01:45.5]} 56... Ke5
{[%clk 0:00:39.6]} 57. h6 {[%clk 0:01:43.4]} 57... Kf6 {[%clk 0:00:38.2]} 58.
Kh8 {[%clk 0:01:31.3]} 58... Rh2 {[%clk 0:00:33.9]} 59. h7 {[%clk 0:01:29.6]}
59... Ra2 {[%clk 0:00:29.9]} 60. Rf1+ {[%clk 0:01:24]} 60... Ke5 {[%clk
0:00:23.7]} 61. Rf7 {[%clk 0:01:13.8]} 61... Kxd5 {[%clk 0:00:18.8]} 62. Kg8
{[%clk 0:01:10.6]} 62... Rg2+ {[%clk 0:00:15.8]} 63. Rg7 {[%clk 0:01:09.2]}
63... Rh2 {[%clk 0:00:13.7]} 64. Rxe7 {[%clk 0:01:05.4]} 64... Kc5 {[%clk
0:00:12.1]} 65. h8=Q {[%clk 0:01:02.1]} 65... Rxh8+ {[%clk 0:00:11]} 66. Kxh8
{[%clk 0:01:02]} 66... d5 {[%clk 0:00:09.8]} 67. Kg7 {[%clk 0:00:57.7]} 67... d4
{[%clk 0:00:07.2]} 68. Kf6 {[%clk 0:00:56.3]} 68... Kc4 {[%clk 0:00:06.5]} 69.
Ke5 {[%clk 0:00:50.5]} 69... d3 {[%clk 0:00:05.1]} 70. Ke4 {[%clk 0:00:44.1]}
70... Kc3 {[%clk 0:00:03.5]} 71. Ke3 {[%clk 0:00:40.5]} 1-0

[Event "Live Chess"]
[Site "Chess.com"]
[Date "2023.05.20"]
[Round "-"]
[White "ProfPoisson"]
[Black "smoggyrabbit"]
[Result "0-1"]
[WhiteElo "1059"]
[BlackElo "1621"]
[TimeControl "300"]
[EndTime "11:14:47 PDT"]
[Termination "smoggyrabbit won by resignation"]

1. e4 {[%clk 0:04:55.7]} 1... e6 {[%clk 0:04:59.3]} 2. d4 {[%clk 0:04:52.9]}
2... d5 {[%clk 0:04:58.6]} 3. e5 {[%clk 0:04:49.5]} 3... c5 {[%clk 0:04:57.3]}
4. c3 {[%clk 0:04:45.6]} 4... Nc6 {[%clk 0:04:56.4]} 5. Nf3 {[%clk 0:04:42.8]}
5... Bd7 {[%clk 0:04:55.7]} 6. Bd3 {[%clk 0:04:38.3]} 6... Rc8 {[%clk
0:04:53.5]} 7. O-O {[%clk 0:04:27.1]} 7... cxd4 {[%clk 0:04:52.7]} 8. cxd4
{[%clk 0:04:15.8]} 8... Nb4 {[%clk 0:04:51.7]} 9. Be2 {[%clk 0:03:55.6]} 9...
Nc2 {[%clk 0:04:50.3]} 10. Bg5 {[%clk 0:03:35.7]} 10... Be7 {[%clk 0:04:43.9]}
11. Nc3 {[%clk 0:03:18.3]} 11... Nxa1 {[%clk 0:04:40.6]} 12. Nb5 {[%clk
0:03:16]} 12... Qb6 {[%clk 0:04:06.5]} 13. Bxe7 {[%clk 0:03:01.2]} 13... Bxb5
{[%clk 0:04:05.1]} 14. Bc5 {[%clk 0:02:53.5]} 14... Bxe2 {[%clk 0:03:31.7]} 15.
Bxb6 {[%clk 0:02:37.9]} 15... Bxd1 {[%clk 0:03:29.3]} 16. Rxd1 {[%clk
0:02:37.4]} 16... axb6 {[%clk 0:03:27.3]} 17. Rxa1 {[%clk 0:02:35.8]} 17... Ne7
{[%clk 0:03:24.6]} 0-1

[Event "Live Chess"]
[Site "Chess.com"]
[Date "2023.05.20"]
[Round "-"]
[White "BogdanBeleiUkraine"]
[Black "wot-not"]
[Result "0-1"]
[WhiteElo "1167"]
[BlackElo "1460"]
[TimeControl "300"]
[EndTime "11:14:56 PDT"]
[Termination "wot-not won by resignation"]

1. e4 {[%clk 0:04:58.5]} 1... e6 {[%clk 0:04:57.9]} 2. Nc3 {[%clk 0:04:57.5]}
2... d5 {[%clk 0:04:57.7]} 3. e5 {[%clk 0:04:55.8]} 3... d4 {[%clk 0:04:55.4]}
4. Ne4 {[%clk 0:04:52.6]} 4... Nc6 {[%clk 0:04:54.5]} 5. f4 {[%clk 0:04:51.1]}
5... Nge7 {[%clk 0:04:50.8]} 6. Bb5 {[%clk 0:04:47]} 6... Nd5 {[%clk 0:04:43.7]}
7. g3 {[%clk 0:04:39.4]} 7... Bd7 {[%clk 0:04:29.9]} 8. d3 {[%clk 0:04:37.1]}
8... a6 {[%clk 0:04:29]} 9. Ba4 {[%clk 0:04:35.2]} 9... Be7 {[%clk 0:04:27.2]}
10. Nf3 {[%clk 0:04:30]} 10... h6 {[%clk 0:04:25.6]} 11. Bxc6 {[%clk 0:04:25.4]}
11... Bxc6 {[%clk 0:04:23.4]} 12. Nxd4 {[%clk 0:04:24.9]} 12... O-O {[%clk
0:04:12.6]} 13. Nf3 {[%clk 0:04:15.6]} 13... f6 {[%clk 0:04:00.4]} 14. exf6
{[%clk 0:04:11.8]} 14... Nxf6 {[%clk 0:03:57.9]} 15. O-O {[%clk 0:04:05.8]}
15... Nxe4 {[%clk 0:03:55.9]} 16. dxe4 {[%clk 0:04:03.5]} 16... Bxe4 {[%clk
0:03:54.8]} 17. c3 {[%clk 0:03:56.2]} 17... Bc5+ {[%clk 0:03:52.7]} 18. Kg2
{[%clk 0:03:53.8]} 18... Qe8 {[%clk 0:03:38.9]} 19. Qe2 {[%clk 0:03:43.8]} 19...
Bd5 {[%clk 0:03:31.6]} 20. c4 {[%clk 0:03:27.8]} 20... Bc6 {[%clk 0:03:26.2]}
21. Be3 {[%clk 0:03:16]} 21... Bxe3 {[%clk 0:03:22.6]} 22. Qxe3 {[%clk
0:03:14.6]} 22... Qh5 {[%clk 0:03:04.5]} 23. b3 {[%clk 0:03:00.1]} 23... Rae8
{[%clk 0:02:58.8]} 24. Kg1 {[%clk 0:02:46]} 24... Bxf3 {[%clk 0:02:39.7]} 25.
Rxf3 {[%clk 0:02:42.6]} 25... e5 {[%clk 0:02:26]} 26. Qd3 {[%clk 0:02:38.8]}
26... e4 {[%clk 0:02:10.1]} 27. Qd5+ {[%clk 0:02:34.9]} 27... Qxd5 {[%clk
0:02:03.8]} 28. cxd5 {[%clk 0:02:33.2]} 28... exf3 {[%clk 0:02:03.1]} 0-1

[Event "Live Chess"]
[Site "Chess.com"]
[Date "2023.05.20"]
[Round "-"]
[White "Enhard"]
[Black "CeladonFish"]
[Result "1-0"]
[WhiteElo "1453"]
[BlackElo "1035"]
[TimeControl "300"]
[EndTime "11:14:57 PDT"]
[Termination "Enhard won by checkmate"]

1. d4 {[%clk 0:04:57.6]} 1... Nf6 {[%clk 0:04:56.8]} 2. Bf4 {[%clk 0:04:56.2]}
2... g6 {[%clk 0:04:56]} 3. e3 {[%clk 0:04:55]} 3... Bg7 {[%clk 0:04:55.3]} 4.
h3 {[%clk 0:04:54]} 4... O-O {[%clk 0:04:54.8]} 5. Nf3 {[%clk 0:04:53.4]} 5...
d6 {[%clk 0:04:54.2]} 6. c3 {[%clk 0:04:52.4]} 6... Bf5 {[%clk 0:04:44.9]} 7.
Nbd2 {[%clk 0:04:48.5]} 7... Nbd7 {[%clk 0:04:40.7]} 8. Bh2 {[%clk 0:04:46.7]}
8... c5 {[%clk 0:04:31.9]} 9. Bb5 {[%clk 0:04:41.6]} 9... Nb6 {[%clk 0:04:28.6]}
10. O-O {[%clk 0:04:38.7]} 10... a6 {[%clk 0:04:24.1]} 11. Be2 {[%clk
0:04:34.6]} 11... Nbd5 {[%clk 0:04:20.1]} 12. dxc5 {[%clk 0:04:31.6]} 12... dxc5
{[%clk 0:04:18.7]} 13. Nb3 {[%clk 0:04:23.8]} 13... c4 {[%clk 0:04:15.2]} 14.
Bxc4 {[%clk 0:04:21.4]} 14... b5 {[%clk 0:04:05.2]} 15. Bxd5 {[%clk 0:04:15.6]}
15... Nxd5 {[%clk 0:03:57.3]} 16. Nbd4 {[%clk 0:04:14.3]} 16... Bxd4 {[%clk
0:03:53.3]} 17. Nxd4 {[%clk 0:04:06.4]} 17... e5 {[%clk 0:03:34.9]} 18. Bxe5
{[%clk 0:04:01.2]} 18... f6 {[%clk 0:03:31.8]} 19. Bh2 {[%clk 0:03:58.8]} 19...
Bd7 {[%clk 0:03:20.6]} 20. Re1 {[%clk 0:03:52.2]} 20... Re8 {[%clk 0:03:01.4]}
21. e4 {[%clk 0:03:42]} 21... Nb6 {[%clk 0:02:58.1]} 22. b3 {[%clk 0:03:28]}
22... Re5 {[%clk 0:02:49.6]} 23. Bxe5 {[%clk 0:03:24.6]} 23... fxe5 {[%clk
0:02:24.1]} 24. Nf3 {[%clk 0:03:23]} 24... Rc8 {[%clk 0:02:16.7]} 25. Nxe5
{[%clk 0:03:20.9]} 25... Qe7 {[%clk 0:02:15.7]} 26. Nxd7 {[%clk 0:03:17.3]}
26... Nxd7 {[%clk 0:02:14.3]} 27. Qd5+ {[%clk 0:03:14.5]} 27... Kg7 {[%clk
0:02:12.2]} 28. Rad1 {[%clk 0:03:12.6]} 28... Rd8 {[%clk 0:02:09.5]} 29. Qd4+
{[%clk 0:03:07.4]} 29... Kf8 {[%clk 0:02:06.4]} 30. Qh8+ {[%clk 0:03:05.1]}
30... Kf7 {[%clk 0:02:05.4]} 31. Qxh7+ {[%clk 0:03:03.7]} 31... Kf6 {[%clk
0:02:03.7]} 32. e5+ {[%clk 0:02:59.1]} 32... Nxe5 {[%clk 0:01:57.5]} 33. Qxe7+
{[%clk 0:02:56.3]} 33... Kxe7 {[%clk 0:01:56.3]} 34. Rxe5+ {[%clk 0:02:54.1]}
34... Kf6 {[%clk 0:01:53.3]} 35. Rxd8 {[%clk 0:02:52.6]} 35... Kxe5 {[%clk
0:01:52.3]} 36. Ra8 {[%clk 0:02:49]} 36... Ke4 {[%clk 0:01:50.5]} 37. Rxa6
{[%clk 0:02:46.3]} 37... Kd3 {[%clk 0:01:49.7]} 38. Ra5 {[%clk 0:02:45.4]} 38...
Kxc3 {[%clk 0:01:49]} 39. Rxb5 {[%clk 0:02:44.8]} 39... Kb2 {[%clk 0:01:47.1]}
40. a4 {[%clk 0:02:43.4]} 40... Ka3 {[%clk 0:01:46.4]} 41. Kf1 {[%clk 0:02:42]}
41... g5 {[%clk 0:01:44.5]} 42. Ke2 {[%clk 0:02:41.3]} 42... g4 {[%clk
0:01:41.9]} 43. hxg4 {[%clk 0:02:40.3]} 43... Kb2 {[%clk 0:01:40.9]} 44. g5
{[%clk 0:02:39.3]} 44... Ka3 {[%clk 0:01:39.9]} 45. g6 {[%clk 0:02:38.8]} 45...
Kb2 {[%clk 0:01:39.5]} 46. g7 {[%clk 0:02:37.5]} 46... Ka3 {[%clk 0:01:39.2]}
47. g8=Q {[%clk 0:02:34.6]} 47... Kb2 {[%clk 0:01:38.5]} 48. Qg7+ {[%clk
0:02:33.6]} 48... Ka3 {[%clk 0:01:36.8]} 49. Qa1# {[%clk 0:02:32.9]} 1-0

[Event "Live Chess"]
[Site "Chess.com"]
[Date "2023.05.20"]
[Round "-"]
[White "mliszewski"]
[Black "Jeffaroow"]
[Result "1-0"]
[WhiteElo "1902"]
[BlackElo "460"]
[TimeControl "300"]
[EndTime "11:15:06 PDT"]
[Termination "mliszewski won by resignation"]

1. d4 {[%clk 0:04:59]} 1... d5 {[%clk 0:04:57.6]} 2. Bf4 {[%clk 0:04:58.4]} 2...
Nf6 {[%clk 0:04:56]} 3. e3 {[%clk 0:04:56.7]} 3... c5 {[%clk 0:04:48.8]} 4. dxc5
{[%clk 0:04:54.5]} 4... e6 {[%clk 0:04:47.7]} 5. b4 {[%clk 0:04:52.9]} 5... a5
{[%clk 0:04:42.3]} 6. c3 {[%clk 0:04:52.2]} 6... axb4 {[%clk 0:04:41.1]} 7. cxb4
{[%clk 0:04:51.4]} 7... Na6 {[%clk 0:04:29.2]} 8. Bxa6 {[%clk 0:04:38.7]} 8...
bxa6 {[%clk 0:04:26.8]} 9. Nd2 {[%clk 0:04:32.8]} 9... a5 {[%clk 0:04:25.2]} 10.
a3 {[%clk 0:04:31.3]} 10... axb4 {[%clk 0:04:22.3]} 11. axb4 {[%clk 0:04:30.3]}
11... Rxa1 {[%clk 0:04:18.2]} 12. Qxa1 {[%clk 0:04:30.2]} 12... Ne4 {[%clk
0:04:13.4]} 13. Nxe4 {[%clk 0:04:25.1]} 13... dxe4 {[%clk 0:04:11.7]} 14. Ne2
{[%clk 0:04:24.4]} 14... g5 {[%clk 0:04:05.4]} 15. Bg3 {[%clk 0:04:17.8]} 15...
f6 {[%clk 0:03:57.7]} 16. O-O {[%clk 0:04:15.5]} 16... Bg7 {[%clk 0:03:39.2]}
17. Rd1 {[%clk 0:04:12]} 17... Bd7 {[%clk 0:03:34.8]} 18. c6 {[%clk 0:04:09.7]}
1-0

[Event "Live Chess"]
[Site "Chess.com"]
[Date "2023.05.20"]
[Round "-"]
[White "hturner40"]
[Black "bristolunichess"]
[Result "0-1"]
[WhiteElo "1832"]
[BlackElo "1833"]
[TimeControl "300"]
[EndTime "11:15:09 PDT"]
[Termination "bristolunichess won on time"]

1. Nc3 {[%clk 0:04:54.1]} 1... Nf6 {[%clk 0:04:57.3]} 2. d4 {[%clk 0:04:51.7]}
2... d5 {[%clk 0:04:55.1]} 3. Bg5 {[%clk 0:04:50.5]} 3... Ne4 {[%clk 0:04:51.8]}
4. Nxe4 {[%clk 0:04:42.2]} 4... dxe4 {[%clk 0:04:51.7]} 5. e3 {[%clk 0:04:18.2]}
5... c5 {[%clk 0:04:48.7]} 6. Qd2 {[%clk 0:04:15.8]} 6... Nc6 {[%clk 0:04:22.4]}
7. dxc5 {[%clk 0:04:06.9]} 7... Qxd2+ {[%clk 0:04:13.9]} 8. Kxd2 {[%clk
0:04:05.4]} 8... e5 {[%clk 0:04:08.6]} 9. Bb5 {[%clk 0:03:44.7]} 9... Bd7 {[%clk
0:03:51]} 10. Ne2 {[%clk 0:03:29.9]} 10... Bxc5 {[%clk 0:03:42.5]} 11. Nc3
{[%clk 0:03:28.6]} 11... h6 {[%clk 0:03:20.9]} 12. Bh4 {[%clk 0:03:24.8]} 12...
g5 {[%clk 0:03:20]} 13. Bg3 {[%clk 0:03:23.3]} 13... f5 {[%clk 0:03:18.4]} 14.
Bxc6 {[%clk 0:03:17.7]} 14... Bxc6 {[%clk 0:03:17.7]} 15. Bxe5 {[%clk
0:03:16.5]} 15... O-O-O+ {[%clk 0:03:17.4]} 16. Ke2 {[%clk 0:03:07.9]} 16...
Rhe8 {[%clk 0:03:13.3]} 17. Bg3 {[%clk 0:02:58.9]} 17... b5 {[%clk 0:02:59.4]}
18. a3 {[%clk 0:02:54.3]} 18... a5 {[%clk 0:02:55.4]} 19. Rhd1 {[%clk
0:02:30.7]} 19... b4 {[%clk 0:02:53.4]} 20. axb4 {[%clk 0:02:22.4]} 20... axb4
{[%clk 0:02:53.3]} 21. Na4 {[%clk 0:01:37.4]} 21... Bb5+ {[%clk 0:02:46.2]} 22.
Ke1 {[%clk 0:01:32.4]} 22... Rxd1+ {[%clk 0:02:20.1]} 23. Kxd1 {[%clk
0:01:28.6]} 23... Ba7 {[%clk 0:02:05.1]} 24. b3 {[%clk 0:01:10.7]} 24... Rf8
{[%clk 0:01:56.7]} 25. Nb2 {[%clk 0:01:01.4]} 25... Kb7 {[%clk 0:01:47.6]} 26.
Be5 {[%clk 0:00:50.3]} 26... f4 {[%clk 0:01:36.8]} 27. Bd4 {[%clk 0:00:39.9]}
27... Rd8 {[%clk 0:01:32.3]} 28. Rxa7+ {[%clk 0:00:35.6]} 28... Kc6 {[%clk
0:01:31.1]} 29. Rh7 {[%clk 0:00:31.1]} 29... fxe3 {[%clk 0:01:26.8]} 30. fxe3
{[%clk 0:00:29.5]} 30... Rd6 {[%clk 0:01:22.5]} 31. Nc4 {[%clk 0:00:27]} 31...
Bxc4 {[%clk 0:01:21.4]} 32. bxc4 {[%clk 0:00:25.5]} 32... g4 {[%clk 0:01:17]}
33. c5 {[%clk 0:00:24.1]} 33... Rf6 {[%clk 0:01:13.1]} 34. Ra7 {[%clk
0:00:21.6]} 34... Rf1+ {[%clk 0:01:10.9]} 35. Ke2 {[%clk 0:00:19.7]} 35... Rg1
{[%clk 0:01:09.1]} 36. Ra6+ {[%clk 0:00:17.2]} 36... Kd5 {[%clk 0:01:08.5]} 37.
Rxh6 {[%clk 0:00:14.7]} 37... Rxg2+ {[%clk 0:01:07.7]} 38. Kf1 {[%clk
0:00:12.7]} 38... Rxc2 {[%clk 0:01:06.9]} 39. Rh5+ {[%clk 0:00:11.1]} 39... Kc4
{[%clk 0:01:05.5]} 40. c6 {[%clk 0:00:09.4]} 40... Kd3 {[%clk 0:01:04]} 41. Rc5
{[%clk 0:00:06.4]} 41... Rxh2 {[%clk 0:01:01]} 42. c7 {[%clk 0:00:04.4]} 42...
g3 {[%clk 0:00:53.2]} 43. c8=Q {[%clk 0:00:02]} 43... g2+ {[%clk 0:00:48.8]} 44.
Kg1 {[%clk 0:00:00.9]} 44... Rh1+ {[%clk 0:00:45.3]} 45. Kxg2 {[%clk 0:00:00.3]}
45... Rh2+ {[%clk 0:00:42.6]} 0-1

[Event "Live Chess"]
[Site "Chess.com"]
[Date "2023.05.20"]
[Round "-"]
[White "YF22Raptor"]
[Black "18Ziyad"]
[Result "1-0"]
[WhiteElo "1017"]
[BlackElo "935"]
[TimeControl "300"]
[EndTime "11:15:24 PDT"]
[Termination "YF22Raptor won by resignation"]

1. e4 {[%clk 0:04:57.4]} 1... d5 {[%clk 0:04:58.9]} 2. exd5 {[%clk 0:04:54]}
2... Qxd5 {[%clk 0:04:58.8]} 3. Nc3 {[%clk 0:04:53.6]} 3... Qd8 {[%clk
0:04:58.7]} 4. Qe2 {[%clk 0:04:53]} 4... Nf6 {[%clk 0:04:57.7]} 5. Nf3 {[%clk
0:04:52.4]} 5... Nc6 {[%clk 0:04:57.2]} 6. d4 {[%clk 0:04:51.7]} 6... Bg4 {[%clk
0:04:56.2]} 7. Be3 {[%clk 0:04:50.7]} 7... e6 {[%clk 0:04:55]} 8. O-O-O {[%clk
0:04:48.6]} 8... Bb4 {[%clk 0:04:53.7]} 9. h3 {[%clk 0:04:48]} 9... Bh5 {[%clk
0:04:52.3]} 10. Bd2 {[%clk 0:04:46.6]} 10... Bg6 {[%clk 0:04:48.1]} 11. a3
{[%clk 0:04:44.6]} 11... Ne4 {[%clk 0:04:46.9]} 12. Nxe4 {[%clk 0:04:40.6]}
12... Bxd2+ {[%clk 0:04:44.4]} 13. Rxd2 {[%clk 0:04:39.3]} 13... f5 {[%clk
0:04:35.8]} 14. Nc5 {[%clk 0:04:32.1]} 14... O-O {[%clk 0:04:28.5]} 15. Qxe6+
{[%clk 0:04:30]} 15... Bf7 {[%clk 0:04:23]} 16. Qxf5 {[%clk 0:04:23.3]} 16... b6
{[%clk 0:04:16.9]} 17. Ne6 {[%clk 0:04:17.3]} 17... Bxe6 {[%clk 0:04:14.7]} 18.
Qxe6+ {[%clk 0:04:16.1]} 18... Kh8 {[%clk 0:04:13.2]} 19. Qxc6 {[%clk
0:04:14.3]} 1-0

[Event "Live Chess"]
[Site "Chess.com"]
[Date "2023.05.20"]
[Round "-"]
[White "Mikhail_Golubev"]
[Black "Singapourfeuj"]
[Result "1-0"]
[WhiteElo "2529"]
[BlackElo "2235"]
[TimeControl "300"]
[EndTime "11:15:33 PDT"]
[Termination "Mikhail_Golubev won by checkmate"]

1. e4 {[%clk 0:04:57.2]} 1... e6 {[%clk 0:04:59.1]} 2. d4 {[%clk 0:04:54.1]}
2... d5 {[%clk 0:04:58.3]} 3. Nc3 {[%clk 0:04:53.7]} 3... Nf6 {[%clk 0:04:57]}
4. Bg5 {[%clk 0:04:49.4]} 4... Be7 {[%clk 0:04:55.8]} 5. exd5 {[%clk 0:04:46.7]}
5... Nxd5 {[%clk 0:04:52.2]} 6. Bxe7 {[%clk 0:04:43.8]} 6... Qxe7 {[%clk
0:04:51.4]} 7. Qd2 {[%clk 0:04:40.6]} 7... Nxc3 {[%clk 0:04:50.2]} 8. Qxc3
{[%clk 0:04:39.3]} 8... O-O {[%clk 0:04:48.9]} 9. O-O-O {[%clk 0:04:38.2]} 9...
c5 {[%clk 0:04:43.3]} 10. Qxc5 {[%clk 0:04:32.1]} 10... Qxc5 {[%clk 0:04:42.1]}
11. dxc5 {[%clk 0:04:32]} 11... a5 {[%clk 0:04:41]} 12. Nf3 {[%clk 0:04:26]}
12... Nd7 {[%clk 0:04:37]} 13. c6 {[%clk 0:04:25.2]} 13... bxc6 {[%clk
0:04:35.8]} 14. Rd6 {[%clk 0:04:22.1]} 14... a4 {[%clk 0:04:30.5]} 15. Be2
{[%clk 0:04:17.2]} 15... a3 {[%clk 0:04:29]} 16. b3 {[%clk 0:04:15.4]} 16... Nf6
{[%clk 0:04:27.6]} 17. Bd3 {[%clk 0:03:31.9]} 17... c5 {[%clk 0:04:25.3]} 18.
Ne5 {[%clk 0:03:17.3]} 18... Bb7 {[%clk 0:04:21.7]} 19. f3 {[%clk 0:03:15.4]}
19... Rfd8 {[%clk 0:04:03.7]} 20. Rxd8+ {[%clk 0:03:08.3]} 20... Rxd8 {[%clk
0:04:02.2]} 21. c4 {[%clk 0:03:01]} 21... Nd7 {[%clk 0:03:57.5]} 22. Nxd7 {[%clk
0:02:58.5]} 22... Rxd7 {[%clk 0:03:56.7]} 23. Kc2 {[%clk 0:02:57.5]} 23... f6
{[%clk 0:03:53.8]} 24. Rd1 {[%clk 0:02:53]} 24... Bc6 {[%clk 0:03:52.6]} 25. Be2
{[%clk 0:02:44.3]} 25... Rxd1 {[%clk 0:03:50.6]} 26. Bxd1 {[%clk 0:02:43.9]}
26... e5 {[%clk 0:03:48.7]} 27. Kc3 {[%clk 0:02:35]} 27... e4 {[%clk 0:03:45.1]}
28. b4 {[%clk 0:02:26.1]} 28... cxb4+ {[%clk 0:03:37.8]} 29. Kxb4 {[%clk
0:02:24.6]} 29... Kf7 {[%clk 0:03:35.6]} 30. Kxa3 {[%clk 0:02:20.5]} 30... Ke6
{[%clk 0:03:34.3]} 31. Kb4 {[%clk 0:02:14.6]} 31... e3 {[%clk 0:03:31.6]} 32.
Kc3 {[%clk 0:02:10.7]} 32... f5 {[%clk 0:03:27.6]} 33. f4 {[%clk 0:01:52.8]}
33... Bxg2 {[%clk 0:03:26.2]} 34. Kd3 {[%clk 0:01:48.8]} 34... Bf1+ {[%clk
0:03:25.2]} 35. Kxe3 {[%clk 0:01:47.8]} 35... Bxc4 {[%clk 0:03:24]} 36. Bb3
{[%clk 0:01:35.1]} 36... Bxb3 {[%clk 0:03:20.8]} 37. axb3 {[%clk 0:01:34.2]}
37... Kd5 {[%clk 0:03:19.6]} 38. Kd3 {[%clk 0:01:32.2]} 38... Kc5 {[%clk
0:03:18.2]} 39. h4 {[%clk 0:01:24.4]} 39... Kb4 {[%clk 0:03:11.3]} 40. Kc2
{[%clk 0:01:23.2]} 40... g6 {[%clk 0:03:03.5]} 41. Kb2 {[%clk 0:01:22.3]} 41...
Kc5 {[%clk 0:02:57]} 42. Kc3 {[%clk 0:01:21]} 42... Kd5 {[%clk 0:02:55.6]} 43.
b4 {[%clk 0:01:13.1]} 43... Ke4 {[%clk 0:02:52.1]} 44. b5 {[%clk 0:01:11.7]}
44... Kxf4 {[%clk 0:02:51.3]} 45. b6 {[%clk 0:01:10]} 45... Kg4 {[%clk
0:02:46.8]} 46. b7 {[%clk 0:01:08.4]} 46... Kxh4 {[%clk 0:02:46]} 47. b8=Q
{[%clk 0:01:07.3]} 47... h5 {[%clk 0:02:44.5]} 48. Qf4+ {[%clk 0:01:04.6]} 48...
Kh3 {[%clk 0:02:43.6]} 49. Qg5 {[%clk 0:01:03.7]} 49... f4 {[%clk 0:02:42.2]}
50. Qxf4 {[%clk 0:01:01.3]} 50... h4 {[%clk 0:02:40.6]} 51. Kd2 {[%clk
0:00:57.9]} 51... g5 {[%clk 0:02:38.2]} 52. Qxg5 {[%clk 0:00:56.2]} 52... Kh2
{[%clk 0:02:33.4]} 53. Ke2 {[%clk 0:00:55.2]} 53... h3 {[%clk 0:02:29.7]} 54.
Kf1 {[%clk 0:00:53.9]} 54... Kh1 {[%clk 0:02:28.7]} 55. Qg1# {[%clk 0:00:53.3]}
1-0